[Event "Live Chess"]
[Site "Chess.com"]
[Date "2023.05.20"]
[Round "-"]
[White "VicLemon"]
[Black "wadsy27"]
[Result "0-1"]
[WhiteElo "1361"]
[BlackElo "2560"]
[TimeControl "300"]
[EndTime "15:26:49 PDT"]
[Termination "wadsy27 won by resignation"]

1. d4 {[%clk 0:04:58.1]} 1... d5 {[%clk 0:04:56.4]} 2. Nf3 {[%clk 0:04:56]} 2...
Nf6 {[%clk 0:04:53.9]} 3. c4 {[%clk 0:04:52.7]} 3... c6 {[%clk 0:04:53.2]} 4. g3
{[%clk 0:04:50.4]} 4... Bf5 {[%clk 0:04:51.4]} 5. Bg2 {[%clk 0:04:48.9]} 5... h6
{[%clk 0:04:49.5]} 6. O-O {[%clk 0:04:45.1]} 6... e6 {[%clk 0:04:48.5]} 7. Nbd2
{[%clk 0:04:40.9]} 7... Be7 {[%clk 0:04:46]} 8. b3 {[%clk 0:04:37.7]} 8... O-O
{[%clk 0:04:44.8]} 9. Bb2 {[%clk 0:04:36.4]} 9... Nbd7 {[%clk 0:03:51.5]} 10.
Ne5 {[%clk 0:04:20.7]} 10... a5 {[%clk 0:03:44]} 11. Re1 {[%clk 0:04:13.3]}
11... a4 {[%clk 0:03:37.8]} 12. e4 {[%clk 0:03:58.7]} 12... dxe4 {[%clk
0:03:32]} 13. Nxe4 {[%clk 0:03:56]} 13... axb3 {[%clk 0:03:15.2]} 14. Nxf6+
{[%clk 0:03:52.5]} 14... Nxf6 {[%clk 0:02:55.5]} 15. axb3 {[%clk 0:03:35]} 15...
Qb6 {[%clk 0:02:53.2]} 16. Rxa8 {[%clk 0:02:05]} 16... Rxa8 {[%clk 0:02:49]} 17.
d5 {[%clk 0:02:04.1]} 17... cxd5 {[%clk 0:02:38.7]} 18. Bd4 {[%clk 0:01:48.4]}
18... Qd8 {[%clk 0:02:29.3]} 19. c5 {[%clk 0:01:37.4]} 19... Nd7 {[%clk
0:02:18.4]} 20. Nxd7 {[%clk 0:01:22.5]} 20... Qxd7 {[%clk 0:02:16.8]} 21. b4
{[%clk 0:01:06.6]} 21... Qa4 {[%clk 0:02:10.5]} 22. Qxa4 {[%clk 0:00:58.7]}
22... Rxa4 {[%clk 0:02:10.4]} 23. b5 {[%clk 0:00:57]} 23... Rxd4 {[%clk
0:02:08]} 0-1

[Event "Live Chess"]
[Site "Chess.com"]
[Date "2023.05.20"]
[Round "-"]
[White "fretle"]
[Black "chessfiction"]
[Result "0-1"]
[WhiteElo "1833"]
[BlackElo "2342"]
[TimeControl "300"]
[EndTime "15:26:50 PDT"]
[Termination "chessfiction won on time"]

1. f4 {[%clk 0:04:57.4]} 1... e5 {[%clk 0:04:58.7]} 2. fxe5 {[%clk 0:04:56.6]}
2... d6 {[%clk 0:04:58.5]} 3. exd6 {[%clk 0:04:56.1]} 3... Nc6 {[%clk
0:04:57.9]} 4. dxc7 {[%clk 0:04:52.5]} 4... Qxc7 {[%clk 0:04:57.8]} 5. Nf3
{[%clk 0:04:51.1]} 5... Bd6 {[%clk 0:04:56.4]} 6. d4 {[%clk 0:03:45.9]} 6... Nf6
{[%clk 0:04:52.3]} 7. c3 {[%clk 0:02:41.9]} 7... Bf5 {[%clk 0:04:48.9]} 8. Be3
{[%clk 0:01:54]} 8... Ng4 {[%clk 0:04:45.2]} 9. Bg1 {[%clk 0:01:52.8]} 9... Bf4
{[%clk 0:04:41.8]} 10. e3 {[%clk 0:01:25.1]} 10... Bxe3 {[%clk 0:04:16.9]} 11.
Qe2 {[%clk 0:01:19.4]} 11... O-O {[%clk 0:04:11.8]} 12. Bxe3 {[%clk 0:01:15.4]}
12... Nxe3 {[%clk 0:04:10.7]} 13. Qxe3 {[%clk 0:01:08.9]} 13... Rfe8 {[%clk
0:04:09.8]} 14. Ne5 {[%clk 0:01:08.2]} 14... Nxe5 {[%clk 0:04:08.9]} 15. Kd1
{[%clk 0:00:52.3]} 15... Nd3 {[%clk 0:04:01.9]} 16. Qd2 {[%clk 0:00:35.2]} 16...
Re1+ {[%clk 0:03:58.4]} 17. Qxe1 {[%clk 0:00:30.9]} 17... Nxe1 {[%clk
0:03:58.3]} 18. Kxe1 {[%clk 0:00:30.6]} 18... Re8+ {[%clk 0:03:57.5]} 19. Kd1
{[%clk 0:00:18.9]} 19... Bg4+ {[%clk 0:03:55.5]} 20. Kc2 {[%clk 0:00:17.1]}
20... Qf4 {[%clk 0:03:55.4]} 21. Na3 {[%clk 0:00:14.9]} 21... Bf5+ {[%clk
0:03:55.3]} 22. Kb3 {[%clk 0:00:13.9]} 22... Qd2 {[%clk 0:03:52.7]} 23. Bc4
{[%clk 0:00:10.5]} 23... Be6 {[%clk 0:03:52.6]} 24. Bxe6 {[%clk 0:00:09.3]}
24... Rxe6 {[%clk 0:03:52.1]} 25. Nc4 {[%clk 0:00:06.8]} 25... Qd3 {[%clk
0:03:50.9]} 26. Rae1 {[%clk 0:00:02.6]} 26... Rxe1 {[%clk 0:03:49.5]} 27. Rxe1
{[%clk 0:00:02.5]} 27... h6 {[%clk 0:03:48.1]} 28. Re8+ {[%clk 0:00:01.4]} 28...
Kh7 {[%clk 0:03:46.6]} 29. Re5 {[%clk 0:00:01.3]} 29... Qd1+ {[%clk 0:03:45.7]}
30. Ka3 {[%clk 0:00:00.3]} 30... b5 {[%clk 0:03:45.6]} 0-1

[Event "Live Chess"]
[Site "Chess.com"]
[Date "2023.05.20"]
[Round "-"]
[White "1600x"]
[Black "BJAW87"]
[Result "1-0"]
[WhiteElo "1758"]
[BlackElo "1424"]
[TimeControl "300"]
[EndTime "15:27:02 PDT"]
[Termination "1600x won by resignation"]

1. Nc3 {[%clk 0:04:49.3]} 1... e5 {[%clk 0:04:58.4]} 2. e3 {[%clk 0:04:48.7]}
2... d5 {[%clk 0:04:56.9]} 3. e4 {[%clk 0:04:47.9]} 3... dxe4 {[%clk 0:04:52.5]}
4. Nxe4 {[%clk 0:04:46]} 4... f5 {[%clk 0:04:51.6]} 5. Nc3 {[%clk 0:04:44.5]}
5... Nf6 {[%clk 0:04:48.1]} 6. d3 {[%clk 0:04:43.1]} 6... Nc6 {[%clk 0:04:46]}
7. Qe2 {[%clk 0:04:41.3]} 7... Bd6 {[%clk 0:04:41.6]} 8. Nf3 {[%clk 0:04:39.1]}
8... O-O {[%clk 0:04:39.8]} 9. Nb5 {[%clk 0:04:36.3]} 9... e4 {[%clk 0:04:27]}
10. dxe4 {[%clk 0:04:33.8]} 10... fxe4 {[%clk 0:04:26.9]} 11. Ng5 {[%clk
0:04:32.3]} 11... Bg4 {[%clk 0:04:08]} 12. f3 {[%clk 0:04:30.9]} 12... exf3
{[%clk 0:04:05.9]} 13. gxf3 {[%clk 0:04:29.7]} 13... Re8 {[%clk 0:04:02.2]} 14.
Be3 {[%clk 0:04:26.7]} 14... Bh5 {[%clk 0:03:44.3]} 15. O-O-O {[%clk 0:04:24.5]}
15... Qe7 {[%clk 0:03:32.4]} 16. Qc4+ {[%clk 0:04:21.9]} 16... Kh8 {[%clk
0:03:25.4]} 17. Bd2 {[%clk 0:04:19.6]} 17... Ne5 {[%clk 0:03:07.3]} 18. Qh4
{[%clk 0:04:03.7]} 18... Nxf3 {[%clk 0:02:44.7]} 19. Qf2 {[%clk 0:04:01.8]}
19... Nxg5 {[%clk 0:02:35.2]} 20. Bxg5 {[%clk 0:03:57.8]} 20... Bxd1 {[%clk
0:02:31.9]} 21. Nxd6 {[%clk 0:03:54.4]} 21... Qxd6 {[%clk 0:02:22.6]} 22. Bxf6
{[%clk 0:03:52.4]} 22... Qxf6 {[%clk 0:01:51.6]} 23. Qxf6 {[%clk 0:03:49.6]}
23... gxf6 {[%clk 0:01:51.5]} 24. Kxd1 {[%clk 0:03:47.9]} 24... Rad8+ {[%clk
0:01:50.9]} 25. Bd3 {[%clk 0:03:46.6]} 25... c5 {[%clk 0:01:36.1]} 26. b3 {[%clk
0:03:44.8]} 26... b5 {[%clk 0:01:33.8]} 27. Kc1 {[%clk 0:03:43.1]} 27... a6
{[%clk 0:01:27.2]} 28. a4 {[%clk 0:03:40.7]} 28... Rb8 {[%clk 0:01:13.2]} 29.
Rf1 {[%clk 0:03:35.9]} 29... Kg7 {[%clk 0:01:11]} 30. axb5 {[%clk 0:03:33.9]}
30... axb5 {[%clk 0:01:09.7]} 31. h4 {[%clk 0:03:30.8]} 31... b4 {[%clk
0:01:01.7]} 32. h5 {[%clk 0:03:27.8]} 32... h6 {[%clk 0:01:00.3]} 33. Rg1+
{[%clk 0:03:22.1]} 33... Kf8 {[%clk 0:00:47.9]} 34. Rg6 {[%clk 0:03:16.9]} 34...
Re1+ {[%clk 0:00:35.7]} 35. Kd2 {[%clk 0:03:13.2]} 35... Rh1 {[%clk 0:00:35]}
36. Rxf6+ {[%clk 0:03:09]} 36... Kg7 {[%clk 0:00:34.7]} 37. Rg6+ {[%clk
0:03:07.7]} 37... Kf7 {[%clk 0:00:33.7]} 38. Rxh6 {[%clk 0:03:04.1]} 38... Rd8
{[%clk 0:00:32.5]} 39. Ke3 {[%clk 0:03:01.3]} 39... Rh3+ {[%clk 0:00:31.3]} 40.
Kf4 {[%clk 0:03:00.3]} 40... Kg7 {[%clk 0:00:30.7]} 41. Rh7+ {[%clk 0:02:56.5]}
41... Kf6 {[%clk 0:00:29.4]} 42. Rh6+ {[%clk 0:02:54.4]} 42... Ke7 {[%clk
0:00:28.2]} 43. Ke5 {[%clk 0:02:52.6]} 43... Kd7 {[%clk 0:00:25.5]} 44. Bf5+
{[%clk 0:02:51.2]} 44... Kc7 {[%clk 0:00:24.1]} 45. Bxh3 {[%clk 0:02:49.4]}
45... Rd2 {[%clk 0:00:24]} 46. Bf5 {[%clk 0:02:48]} 46... Rxc2 {[%clk
0:00:23.9]} 47. Bxc2 {[%clk 0:02:45.9]} 1-0

[Event "Live Chess"]
[Site "Chess.com"]
[Date "2023.05.20"]
[Round "-"]
[White "WelshTiger"]
[Black "nigelst"]
[Result "1-0"]
[WhiteElo "2377"]
[BlackElo "1830"]
[TimeControl "300"]
[EndTime "15:27:02 PDT"]
[Termination "WelshTiger won by checkmate"]

1. e4 {[%clk 0:04:58.6]} 1... c6 {[%clk 0:04:59]} 2. d4 {[%clk 0:04:56.7]} 2...
d5 {[%clk 0:04:58.3]} 3. f3 {[%clk 0:04:55.6]} 3... e6 {[%clk 0:04:56.4]} 4. Nc3
{[%clk 0:04:52.7]} 4... Bb4 {[%clk 0:04:53.4]} 5. Qd3 {[%clk 0:04:37.8]} 5... b6
{[%clk 0:04:44.7]} 6. Qe3 {[%clk 0:04:33.6]} 6... Nf6 {[%clk 0:04:37.8]} 7. Bd2
{[%clk 0:04:32.2]} 7... Ba6 {[%clk 0:04:35.2]} 8. Bxa6 {[%clk 0:04:29.6]} 8...
Nxa6 {[%clk 0:04:33.5]} 9. a3 {[%clk 0:04:29.1]} 9... Bxc3 {[%clk 0:04:30]} 10.
Bxc3 {[%clk 0:04:29]} 10... Nc7 {[%clk 0:04:27.3]} 11. Ne2 {[%clk 0:04:27.4]}
11... O-O {[%clk 0:04:23.9]} 12. g4 {[%clk 0:04:25.9]} 12... Re8 {[%clk
0:04:20.2]} 13. g5 {[%clk 0:04:22.3]} 13... Nd7 {[%clk 0:04:15.1]} 14. h4 {[%clk
0:04:20.9]} 14... c5 {[%clk 0:04:14]} 15. O-O-O {[%clk 0:04:15.8]} 15... cxd4
{[%clk 0:04:07.2]} 16. Nxd4 {[%clk 0:04:13.6]} 16... Nc5 {[%clk 0:03:59.6]} 17.
h5 {[%clk 0:04:05.1]} 17... Qe7 {[%clk 0:03:45.3]} 18. g6 {[%clk 0:04:03.9]}
18... fxg6 {[%clk 0:03:40]} 19. hxg6 {[%clk 0:04:03.1]} 19... h6 {[%clk
0:03:39.1]} 20. Nc6 {[%clk 0:03:49.4]} 20... Qd6 {[%clk 0:03:03.3]} 21. Rxh6
{[%clk 0:03:47.9]} 21... Qxc6 {[%clk 0:02:58.1]} 22. Rh8+ {[%clk 0:03:46.3]}
22... Kxh8 {[%clk 0:02:55.4]} 23. Qh6+ {[%clk 0:03:45.5]} 23... Kg8 {[%clk
0:02:52.4]} 24. Qxg7# {[%clk 0:03:44.7]} 1-0

[Event "Live Chess"]
[Site "Chess.com"]
[Date "2023.05.20"]
[Round "-"]
[White "Brooms1989"]
[Black "Singapourfeuj"]
[Result "1-0"]
[WhiteElo "1079"]
[BlackElo "2211"]
[TimeControl "300"]
[EndTime "15:27:11 PDT"]
[Termination "Brooms1989 won by checkmate"]

1. e4 {[%clk 0:04:55.5]} 1... e6 {[%clk 0:04:58.9]} 2. d4 {[%clk 0:04:53.9]}
2... d5 {[%clk 0:04:53.6]} 3. Nc3 {[%clk 0:04:52.5]} 3... Nf6 {[%clk 0:04:51.8]}
4. e5 {[%clk 0:04:51.1]} 4... Nfd7 {[%clk 0:04:51]} 5. Nf3 {[%clk 0:04:48.8]}
5... c5 {[%clk 0:04:49.3]} 6. Be3 {[%clk 0:04:42.5]} 6... Nc6 {[%clk 0:04:48]}
7. Qd2 {[%clk 0:04:38.4]} 7... cxd4 {[%clk 0:04:47]} 8. Nxd4 {[%clk 0:04:36.6]}
8... Ndxe5 {[%clk 0:04:45.5]} 9. Nxc6 {[%clk 0:04:34.6]} 9... Nxc6 {[%clk
0:04:44.4]} 10. O-O-O {[%clk 0:04:32.8]} 10... Bd7 {[%clk 0:04:43.5]} 11. h4
{[%clk 0:04:12.5]} 11... Bb4 {[%clk 0:04:41.4]} 12. a3 {[%clk 0:04:10.5]} 12...
Be7 {[%clk 0:04:39.5]} 13. Ne2 {[%clk 0:04:07.3]} 13... O-O {[%clk 0:04:34.6]}
14. h5 {[%clk 0:04:04.9]} 14... Na5 {[%clk 0:04:30.9]} 15. Ng3 {[%clk
0:03:42.9]} 15... Rc8 {[%clk 0:04:28.1]} 16. Kb1 {[%clk 0:03:40]} 16... Bf6
{[%clk 0:04:24]} 17. Bd4 {[%clk 0:03:35.5]} 17... e5 {[%clk 0:04:22.3]} 18. Bc3
{[%clk 0:03:27]} 18... Rxc3 {[%clk 0:04:19.1]} 19. Qxc3 {[%clk 0:03:23.1]} 19...
d4 {[%clk 0:04:17.2]} 20. Qd3 {[%clk 0:03:14.2]} 20... Be6 {[%clk 0:04:14.3]}
21. Ne4 {[%clk 0:03:10.2]} 21... Be7 {[%clk 0:04:13.3]} 22. Be2 {[%clk
0:02:47.4]} 22... Qb6 {[%clk 0:04:10.7]} 23. Nd2 {[%clk 0:02:28]} 23... Bxa3
{[%clk 0:04:06.6]} 24. Qxa3 {[%clk 0:02:24.9]} 24... Rc8 {[%clk 0:04:04.8]} 25.
Bd3 {[%clk 0:02:19]} 25... f5 {[%clk 0:04:03.1]} 26. g4 {[%clk 0:02:01.4]} 26...
e4 {[%clk 0:03:57]} 27. Bf1 {[%clk 0:01:55.7]} 27... e3 {[%clk 0:03:55.1]} 28.
fxe3 {[%clk 0:01:54.6]} 28... dxe3 {[%clk 0:03:54.3]} 29. Nf3 {[%clk 0:01:46.8]}
29... fxg4 {[%clk 0:03:53.1]} 30. Nd4 {[%clk 0:01:38.6]} 30... Bd5 {[%clk
0:03:45.6]} 31. Rg1 {[%clk 0:01:31.8]} 31... Bf3 {[%clk 0:03:44.4]} 32. Nxf3
{[%clk 0:01:29.3]} 32... gxf3 {[%clk 0:03:43.7]} 33. Qe7 {[%clk 0:01:12.9]}
33... e2 {[%clk 0:03:38.4]} 34. Qxg7# {[%clk 0:01:09.9]} 1-0

[Event "Live Chess"]
[Site "Chess.com"]
[Date "2023.05.20"]
[Round "-"]
[White "inspireyou"]
[Black "GMHarry-youtube"]
[Result "1-0"]
[WhiteElo "1521"]
[BlackElo "2004"]
[TimeControl "300"]
[EndTime "15:27:36 PDT"]
[Termination "inspireyou won by resignation"]

1. d4 {[%clk 0:04:52.8]} 1... Nf6 {[%clk 0:04:58.8]} 2. c4 {[%clk 0:04:46.8]}
2... g6 {[%clk 0:04:57.6]} 3. g3 {[%clk 0:04:43.9]} 3... Bg7 {[%clk 0:04:56.3]}
4. Bg2 {[%clk 0:04:43]} 4... O-O {[%clk 0:04:56.2]} 5. Nf3 {[%clk 0:04:41.3]}
5... d5 {[%clk 0:04:55.4]} 6. cxd5 {[%clk 0:04:40.5]} 6... Nxd5 {[%clk
0:04:54.6]} 7. Nc3 {[%clk 0:04:39.8]} 7... Nxc3 {[%clk 0:04:53.5]} 8. bxc3
{[%clk 0:04:38.2]} 8... c5 {[%clk 0:04:51.2]} 9. O-O {[%clk 0:04:37.1]} 9...
cxd4 {[%clk 0:04:48.7]} 10. cxd4 {[%clk 0:04:37]} 10... Nc6 {[%clk 0:04:42.5]}
11. e3 {[%clk 0:04:35.4]} 11... e5 {[%clk 0:04:41]} 12. Nxe5 {[%clk 0:04:21.6]}
12... Nxe5 {[%clk 0:04:38.3]} 13. dxe5 {[%clk 0:04:21.5]} 13... Bxe5 {[%clk
0:04:36.4]} 14. Ba3 {[%clk 0:04:01.1]} 14... Bxa1 {[%clk 0:04:26.2]} 15. Bxf8
{[%clk 0:03:57.6]} 15... Qxd1 {[%clk 0:04:23.8]} 16. Rxd1 {[%clk 0:03:53.1]}
16... Kxf8 {[%clk 0:04:22.9]} 17. Rxa1 {[%clk 0:03:51.9]} 17... Rb8 {[%clk
0:04:20.2]} 18. Rc1 {[%clk 0:03:26.5]} 18... b6 {[%clk 0:04:08.7]} 19. Rc7
{[%clk 0:03:23.8]} 19... a5 {[%clk 0:04:05.5]} 20. Bd5 {[%clk 0:03:18.2]} 20...
Be6 {[%clk 0:04:02.1]} 21. Bxe6 {[%clk 0:03:17]} 21... fxe6 {[%clk 0:04:02]} 22.
Rxh7 {[%clk 0:03:16.6]} 22... b5 {[%clk 0:04:00.1]} 23. Rh8+ {[%clk 0:03:15.4]}
23... Ke7 {[%clk 0:03:54.1]} 24. Rxb8 {[%clk 0:03:15.3]} 24... b4 {[%clk
0:03:53.6]} 25. Ra8 {[%clk 0:03:12.6]} 1-0

[Event "Live Chess"]
[Site "Chess.com"]
[Date "2023.05.20"]
[Round "-"]
[White "domrobson"]
[Black "lateforthesky"]
[Result "0-1"]
[WhiteElo "1783"]
[BlackElo "2122"]
[TimeControl "300"]
[EndTime "15:28:00 PDT"]
[Termination "lateforthesky won by resignation"]

1. d4 {[%clk 0:04:58.4]} 1... Nf6 {[%clk 0:04:58.1]} 2. c4 {[%clk 0:04:57.6]}
2... g6 {[%clk 0:04:57]} 3. Nc3 {[%clk 0:04:56.9]} 3... Bg7 {[%clk 0:04:56]} 4.
e4 {[%clk 0:04:56.3]} 4... d6 {[%clk 0:04:55.2]} 5. Be2 {[%clk 0:04:55.7]} 5...
O-O {[%clk 0:04:53.2]} 6. Bg5 {[%clk 0:04:55]} 6... Na6 {[%clk 0:04:50.3]} 7. a3
{[%clk 0:04:50.3]} 7... c6 {[%clk 0:04:48.5]} 8. h4 {[%clk 0:04:47.9]} 8... Nc7
{[%clk 0:04:36.7]} 9. h5 {[%clk 0:04:45.8]} 9... d5 {[%clk 0:04:29.2]} 10. exd5
{[%clk 0:04:37.4]} 10... cxd5 {[%clk 0:04:27.9]} 11. hxg6 {[%clk 0:04:33.9]}
11... fxg6 {[%clk 0:04:18.9]} 12. Qd2 {[%clk 0:04:30.5]} 12... Ne4 {[%clk
0:04:10.3]} 13. Nxe4 {[%clk 0:04:25.8]} 13... dxe4 {[%clk 0:04:09.3]} 14. Be3
{[%clk 0:04:21.1]} 14... b6 {[%clk 0:03:31.7]} 15. O-O-O {[%clk 0:04:17.8]}
15... Be6 {[%clk 0:03:24.6]} 16. d5 {[%clk 0:04:14.6]} 16... Bf7 {[%clk
0:03:23.5]} 17. Bh6 {[%clk 0:04:12.3]} 17... Re8 {[%clk 0:02:32.1]} 18. Bxg7
{[%clk 0:04:10.1]} 18... Kxg7 {[%clk 0:02:31.8]} 19. Qh6+ {[%clk 0:04:09.5]}
19... Kg8 {[%clk 0:02:30.5]} 20. Qxh7+ {[%clk 0:04:03.2]} 20... Kf8 {[%clk
0:02:29.6]} 21. Nh3 {[%clk 0:03:55.4]} 21... Qd6 {[%clk 0:02:19.9]} 22. g3
{[%clk 0:03:47.3]} 22... Qe5 {[%clk 0:02:15.9]} 23. Ng5 {[%clk 0:03:40.8]} 23...
Qxg5+ {[%clk 0:02:13.7]} 0-1

[Event "Live Chess"]
[Site "Chess.com"]
[Date "2023.05.20"]
[Round "-"]
[White "jk0110"]
[Black "HoarseyHorsey"]
[Result "0-1"]
[WhiteElo "1116"]
[BlackElo "1440"]
[TimeControl "300"]
[EndTime "15:28:21 PDT"]
[Termination "HoarseyHorsey won on time"]

1. e4 {[%clk 0:04:56.9]} 1... c5 {[%clk 0:04:58.2]} 2. b4 {[%clk 0:04:53.5]}
2... e6 {[%clk 0:04:54.8]} 3. bxc5 {[%clk 0:04:47.8]} 3... Bxc5 {[%clk
0:04:53.2]} 4. d4 {[%clk 0:04:47.2]} 4... Bb6 {[%clk 0:04:51.3]} 5. Nf3 {[%clk
0:04:45.4]} 5... Ne7 {[%clk 0:04:50]} 6. Bd3 {[%clk 0:04:41.6]} 6... d5 {[%clk
0:04:48.5]} 7. e5 {[%clk 0:04:40]} 7... Nbc6 {[%clk 0:04:46.5]} 8. c3 {[%clk
0:04:38]} 8... O-O {[%clk 0:04:41.5]} 9. Bxh7+ {[%clk 0:04:26.1]} 9... Kh8
{[%clk 0:04:38.2]} 10. Ng5 {[%clk 0:03:23.4]} 10... Ng8 {[%clk 0:03:57.3]} 11.
Qh5 {[%clk 0:03:02.1]} 11... Nh6 {[%clk 0:03:54.1]} 12. Nxf7+ {[%clk 0:02:10.3]}
12... Rxf7 {[%clk 0:03:35.6]} 13. Bxh6 {[%clk 0:02:06.8]} 13... Kxh7 {[%clk
0:03:30.8]} 14. Bg5+ {[%clk 0:01:59.5]} 14... Kg8 {[%clk 0:03:22]} 15. Bxd8
{[%clk 0:01:51.9]} 15... Nxd8 {[%clk 0:03:21.9]} 16. O-O {[%clk 0:01:48.5]}
16... Rf5 {[%clk 0:03:20.2]} 17. Qh4 {[%clk 0:01:38.3]} 17... Nf7 {[%clk
0:03:17.9]} 18. Nd2 {[%clk 0:01:27.6]} 18... Nh6 {[%clk 0:03:14.6]} 19. Nf3
{[%clk 0:01:15.3]} 19... Bd7 {[%clk 0:02:58.9]} 20. Qe7 {[%clk 0:01:11]} 20...
Rf7 {[%clk 0:02:45.3]} 21. Qd6 {[%clk 0:00:57.4]} 21... Bb5 {[%clk 0:02:36]} 22.
Rfe1 {[%clk 0:00:46.1]} 22... Re8 {[%clk 0:02:23.7]} 23. Ng5 {[%clk 0:00:37.4]}
23... Rf5 {[%clk 0:02:18.8]} 24. Nxe6 {[%clk 0:00:32.6]} 24... Nf7 {[%clk
0:02:09.5]} 25. Qb4 {[%clk 0:00:20.4]} 25... Rxe6 {[%clk 0:01:53.1]} 26. Qxb5
{[%clk 0:00:19.6]} 26... Nd8 {[%clk 0:01:44.5]} 27. Qxd5 {[%clk 0:00:18]} 27...
Kh8 {[%clk 0:01:36.3]} 28. Qxe6 {[%clk 0:00:15.2]} 28... Nxe6 {[%clk 0:01:35.2]}
29. d5 {[%clk 0:00:12.3]} 29... Nf4 {[%clk 0:01:25.7]} 30. Rf1 {[%clk
0:00:06.9]} 30... Nd3 {[%clk 0:01:24.8]} 31. e6 {[%clk 0:00:06]} 31... Nxf2
{[%clk 0:01:22.7]} 32. Rxf2 {[%clk 0:00:04.8]} 32... Rxf2 {[%clk 0:01:20.4]} 33.
Kh1 {[%clk 0:00:03.2]} 33... Re2 {[%clk 0:01:15.6]} 34. d6 {[%clk 0:00:00.9]}
34... Kg8 {[%clk 0:01:12.2]} 0-1

[Event "Live Chess"]
[Site "Chess.com"]
[Date "2023.05.20"]
[Round "-"]
[White "AbilifyXL"]
[Black "MarkLim1"]
[Result "1-0"]
[WhiteElo "1977"]
[BlackElo "1657"]
[TimeControl "300"]
[EndTime "15:28:22 PDT"]
[Termination "AbilifyXL won by resignation"]

1. d4 {[%clk 0:04:58.7]} 1... e6 {[%clk 0:04:57.8]} 2. c4 {[%clk 0:04:57.8]}
2... Bb4+ {[%clk 0:04:56.5]} 3. Bd2 {[%clk 0:04:53.5]} 3... Bxd2+ {[%clk
0:04:55.4]} 4. Qxd2 {[%clk 0:04:52.3]} 4... d5 {[%clk 0:04:54.5]} 5. cxd5 {[%clk
0:04:51.5]} 5... exd5 {[%clk 0:04:53.3]} 6. Nc3 {[%clk 0:04:51.4]} 6... Nf6
{[%clk 0:04:52]} 7. Nf3 {[%clk 0:04:51.3]} 7... O-O {[%clk 0:04:50.8]} 8. e3
{[%clk 0:04:50.3]} 8... Bf5 {[%clk 0:04:49.4]} 9. Bd3 {[%clk 0:04:48.4]} 9...
Bxd3 {[%clk 0:04:48.2]} 10. Qxd3 {[%clk 0:04:48.3]} 10... c6 {[%clk 0:04:47.7]}
11. O-O {[%clk 0:04:47.3]} 11... Nbd7 {[%clk 0:04:46.2]} 12. b4 {[%clk
0:04:46.4]} 12... a6 {[%clk 0:04:44.9]} 13. a4 {[%clk 0:04:44.7]} 13... Re8
{[%clk 0:04:44.2]} 14. b5 {[%clk 0:04:41.3]} 14... axb5 {[%clk 0:04:40.3]} 15.
axb5 {[%clk 0:04:41.2]} 15... Rxa1 {[%clk 0:04:37.7]} 16. Rxa1 {[%clk
0:04:41.1]} 16... c5 {[%clk 0:04:36.1]} 17. dxc5 {[%clk 0:04:39]} 17... Nxc5
{[%clk 0:04:35]} 18. Qd1 {[%clk 0:04:32.2]} 18... b6 {[%clk 0:04:27]} 19. Nd4
{[%clk 0:04:30.2]} 19... Nfe4 {[%clk 0:04:21.8]} 20. Nce2 {[%clk 0:04:27.7]}
20... Qh4 {[%clk 0:04:18.6]} 21. Ng3 {[%clk 0:04:25.6]} 21... Qf6 {[%clk
0:04:07.4]} 22. Ra2 {[%clk 0:03:50.8]} 22... Nc3 {[%clk 0:04:01.6]} 23. Qd2
{[%clk 0:03:46.8]} 23... Nxa2 {[%clk 0:04:00.3]} 24. Qxa2 {[%clk 0:03:45.8]}
24... Rd8 {[%clk 0:03:48]} 25. h3 {[%clk 0:03:42.5]} 25... g6 {[%clk 0:03:45.7]}
26. Nge2 {[%clk 0:03:37.8]} 26... Ne4 {[%clk 0:03:41.9]} 27. Nf3 {[%clk
0:03:27.1]} 27... Ng5 {[%clk 0:03:29.3]} 28. Nfd4 {[%clk 0:03:22.3]} 28... Ne4
{[%clk 0:03:26.8]} 29. Nf3 {[%clk 0:03:19]} 29... Qd6 {[%clk 0:03:25.5]} 30.
Ned4 {[%clk 0:03:14.2]} 30... Qc5 {[%clk 0:03:24.4]} 31. Qb2 {[%clk 0:03:01.8]}
31... Ra8 {[%clk 0:03:15.5]} 32. Kh2 {[%clk 0:02:59.7]} 32... Ra4 {[%clk
0:03:13.1]} 33. Ne5 {[%clk 0:02:46.4]} 33... Rb4 {[%clk 0:03:07]} 34. Qa1 {[%clk
0:02:43.3]} 34... Nxf2 {[%clk 0:03:02.5]} 35. Qf1 {[%clk 0:02:34.7]} 35... Rb2
{[%clk 0:02:54]} 36. Qa1 {[%clk 0:01:59.3]} 36... Rb4 {[%clk 0:02:39.6]} 37. Kg1
{[%clk 0:01:52.9]} 37... Ne4 {[%clk 0:02:34.5]} 38. Nd7 {[%clk 0:01:51.6]} 38...
Qc8 {[%clk 0:02:22.6]} 39. Nf6+ {[%clk 0:01:46.5]} 39... Kg7 {[%clk 0:02:18.1]}
40. Nc6 {[%clk 0:01:39.2]} 40... Nxf6 {[%clk 0:01:58.2]} 41. Nxb4 {[%clk
0:01:37.9]} 41... Qc5 {[%clk 0:01:54.1]} 42. Qd4 {[%clk 0:01:27.1]} 42... Qxb5
{[%clk 0:01:45.9]} 43. Kh2 {[%clk 0:01:21]} 43... Qc5 {[%clk 0:01:42.6]} 44. Qd2
{[%clk 0:01:16.9]} 44... Qd6+ {[%clk 0:01:34.7]} 45. Kh1 {[%clk 0:01:15.6]}
45... h5 {[%clk 0:01:29]} 46. Nd3 {[%clk 0:01:13.2]} 46... Ne4 {[%clk
0:01:24.6]} 47. Qb2+ {[%clk 0:01:10.1]} 47... Qf6 {[%clk 0:01:20.3]} 48. Qb5
{[%clk 0:01:04.2]} 48... Qf1+ {[%clk 0:01:17.6]} 49. Kh2 {[%clk 0:01:03.3]}
49... Nf6 {[%clk 0:00:31.5]} 50. Qb3 {[%clk 0:00:47.6]} 50... Qf5 {[%clk
0:00:25.2]} 51. Nf4 {[%clk 0:00:44.5]} 51... g5 {[%clk 0:00:17.9]} 52. Ne2
{[%clk 0:00:38.7]} 52... Qe5+ {[%clk 0:00:16.2]} 53. Kg1 {[%clk 0:00:36.5]}
53... h4 {[%clk 0:00:15]} 54. Qxb6 {[%clk 0:00:35.1]} 54... Qxe3+ {[%clk
0:00:13.1]} 55. Qxe3 {[%clk 0:00:33.9]} 1-0